bitfinex/quotes_SOLUSD_20220102
["timestamp","ask_amount","ask_price","bid_price","bid_amount"]
[1641115696115,1.61465668,176.17,176.07,1.68669368]
[1641115696316,1.87465668,176.17,176.07,2.18669368]
[1641115696517,1.87465668,176.17,176.08,1.3327]
[1641115696917,1.87465668,176.17,176.08,1.5927]
[1641115697120,1.87465668,176.17,176.08,2.0927]
[1641115697518,1.87465668,176.17,176.08,1.3327]
[1641115697718,2.37465668,176.17,176.04,33.2817479]
[1641115697918,10.55465668,176.17,176.04,25.1017479]
[1641115698118,10.55465668,176.17,176.04,25.3617479]
[1641115698723,1.61465668,176.14,176.04,25.3617479]
[1641115699120,1.87465668,176.14,176.05,1.2647]
[1641115702323,1.61465668,176.14,176.05,2.95139368]
[1641115703123,1.61465668,176.15,176.05,1.5247]
[1641115703623,1.87465668,176.15,176.05,1.5247]
[1641115704832,1.87465668,176.15,176.05,2.95139368]
[1641115705227,1.38505668,176.17,176.06,46.0]
[1641115705428,1.38505668,176.17,176.05,1.68669368]
[1641115705628,1.38505668,176.17,176.06,0.26]
[1641115705828,1.38505668,176.17,176.05,1.68669368]
[1641115706028,1.38505668,176.17,176.06,2.71679368]
[1641115706229,3.22143584,176.19,176.06,2.71679368]
[1641115706530,11.40143584,176.2,176.06,3.47679368]
[1641115707535,8.44,176.2,176.06,3.47679368]
[1641115709132,0.26,176.2,176.06,11.65679368]
[1641115709533,3.98143584,176.21,176.07,72.8265]
[1641115709934,3.48143584,176.21,176.07,74.75319368]
[1641115710136,3.48143584,176.21,176.07,75.01319368]
[1641115710537,0.76,176.21,176.07,73.3265]
[1641115710737,0.76,176.21,176.07,72.8265]
[1641115710937,0.5,176.21,176.07,72.8265]
[1641115711234,9.67764974,176.2,176.07,72.8265]
[1641115711437,10.17764974,176.2,176.08,1.3049]
[1641115711636,10.43764974,176.2,176.08,1.3049]
[1641115711834,3.98143584,176.2,176.08,1.3049]
[1641115712337,3.98143584,176.2,176.08,1.5649]
[1641115712738,3.48143584,176.2,176.08,1.5649]
[1641115712936,0.26,176.2,176.08,1.5649]
[1641115713337,3.98143584,176.21,176.08,1.5649]
[1641115713839,12.16143584,176.21,176.08,1.5649]
[1641115714040,12.16143584,176.21,176.08,1.3049]
[1641115714240,11.90143584,176.21,176.08,1.3049]
[1641115715541,12.16143584,176.21,176.08,1.3049]
[1641115722171,12.16143584,176.21,176.04,26.3585479]
[1641115722374,12.16143584,176.21,176.04,26.8585479]
[1641115722771,3.22143584,176.18,176.04,26.3585479]
[1641115722975,3.98143584,176.18,176.04,27.6142479]
[1641115723375,3.98143584,176.18,176.04,29.54094158]
[1641115723575,3.22143584,176.16,176.04,29.80094158]
[1641115723975,3.48143584,176.16,176.04,29.80094158]
[1641115724174,0.5,176.18,176.04,29.80094158]
[1641115724374,8.68,176.19,176.04,34.95694158]
[1641115724578,8.68,176.19,176.04,43.13694158]
[1641115725479,8.94,176.19,176.04,43.13694158]
[1641115727176,8.94,176.19,176.04,42.63694158]
[1641115728478,8.94,176.19,176.04,43.13694158]
[1641115729383,0.26,176.19,176.04,58.46096178]
[1641115729580,3.48143584,176.21,176.04,58.46096178]
[1641115729778,11.40143584,176.23,176.04,58.46096178]
[1641115729978,11.90143584,176.23,176.04,58.46096178]
[1641115730982,12.16143584,176.23,176.04,58.46096178]
[1641115731190,8.94,176.23,176.04,58.46096178]
[1641115732180,8.94,176.23,176.04,67.71795306]
[1641115734584,8.94,176.23,176.04,53.04496178]
[1641115734787,8.94,176.23,176.04,37.72094158]
[1641115735188,9.67657712,176.22,176.04,35.0374479]
[1641115735388,8.18,176.21,176.04,26.8574479]
[1641115735688,8.44,176.21,176.04,26.8574479]
[1641115735894,3.22143584,176.18,176.04,26.8574479]
[1641115736086,11.66143584,176.18,176.04,28.28414158]
[1641115736287,12.16143584,176.18,176.04,28.28414158]
[1641115736587,12.16143584,176.18,176.04,28.54414158]
[1641115737087,8.94,176.18,176.04,28.54414158]
[1641115739087,0.26,176.18,176.04,28.54414158]
[1641115739291,0.26,176.18,176.05,8.18]
[1641115739493,0.5,176.2,176.05,8.44]
[1641115739692,0.5,176.2,176.05,8.94]
[1641115739931,0.5,176.2,176.06,1.42669368]
[1641115740125,3.22143584,176.21,176.06,9.60669368]
[1641115740327,3.98143584,176.21,176.06,10.36669368]
[1641115740522,3.98143584,176.21,176.07,1.42669368]
[1641115740825,3.98143584,176.21,176.07,1.92669368]
[1641115741022,3.98143584,176.21,176.06,8.68]
[1641115741221,3.98143584,176.21,176.07,1.2529]
[1641115741822,6.45567481,176.2,176.07,1.2529]
[1641115742024,6.71567481,176.2,176.07,1.2529]
[1641115742224,7.21567481,176.2,176.07,1.2529]
[1641115742427,3.98143584,176.2,176.07,1.2529]
[1641115742625,3.98143584,176.2,176.07,1.5129]
[1641115742824,3.98143584,176.2,176.07,1.2529]
[1641115743024,17.85760095,176.19,176.07,1.5129]
[1641115743427,18.61760095,176.19,176.07,1.5129]
[1641115743627,6.45616511,176.18,176.07,1.5129]
[1641115743826,6.95616511,176.18,176.07,0.26]
[1641115744027,7.21616511,176.18,176.04,34.0417479]
[1641115744227,3.98143584,176.18,176.04,34.0417479]
[1641115744627,3.98143584,176.18,176.05,1.2591]
[1641115744827,0.76,176.18,176.05,1.2591]
[1641115745029,0.5,176.18,176.05,1.5191]
[1641115745229,12.16143584,176.19,176.05,1.5191]
[1641115747332,8.94,176.19,176.05,1.5191]
[1641115747832,8.94,176.19,176.05,2.0191]
[1641115751345,4.52776154,176.01,175.94,14.63079582]
[1641115751534,8.18,176.0,175.93,495.78684886]
[1641115751737,8.18,176.0,175.8,8.6858]
[1641115751937,8.94,176.0,175.77,78.6442]
[1641115752136,111.25,176.0,175.77,89.3426]
[1641115752335,111.25,176.0,175.78,28.99270237]
[1641115752938,1.42669368,175.99,175.79,8.18]
[1641115753136,8.18,175.98,175.79,8.18]
[1641115753342,8.68,175.98,175.79,8.18]
[1641115753541,8.94,175.98,175.79,8.18]
[1641115753940,8.94,175.98,175.79,9.5219]
[1641115754937,8.94,175.98,175.79,10.0219]
[1641115755343,8.94,175.98,175.79,9.5219]
[1641115755542,8.94,175.98,175.79,8.18]
[1641115756044,3.22143584,175.96,175.78,28.99270237]
[1641115756242,8.18,175.95,175.78,29.49270237]
[1641115756445,8.68,175.95,175.78,29.49270237]
[1641115756641,15.40500911,175.95,175.78,29.49270237]
[1641115757043,8.94,175.95,175.78,29.49270237]
[1641115758976,8.94,175.95,175.78,29.75270237]
[1641115763573,8.94,175.95,175.78,29.49270237]
[1641115764985,8.94,175.95,175.78,28.99270237]
[1641115765278,8.94,175.95,175.78,29.49270237]
[1641115766779,8.68,175.95,175.78,29.49270237]
[1641115766978,8.68,175.95,175.78,36.27970237]
[1641115767680,8.68,175.95,175.78,29.75270237]
[1641115767877,8.68,175.95,175.78,29.49270237]
[1641115768279,8.94,175.95,175.78,29.49270237]
[1641115769581,8.94,175.95,175.78,29.75270237]
[1641115769986,8.94,175.95,175.78,34.95070237]
[1641115771284,8.94,175.95,175.78,29.25270237]
[1641115771485,8.94,175.95,175.78,29.75270237]
[1641115771985,8.94,175.95,175.78,29.25270237]
[1641115772484,8.94,175.95,175.77,79.9382]
[1641115772685,111.25,175.95,175.77,79.9382]
[1641115773083,119.42088127,175.95,175.77,79.9382]
[1641115773485,119.42088127,175.95,175.77,1.294]
[1641115773887,17.11088127,175.95,175.76,24.85133208]
[1641115774089,102.31,175.93,175.73,77.6275]
[1641115774387,102.31,175.88,175.65,386.02620859]
[1641115774590,8.18,175.87,175.65,386.02620859]
[1641115774790,8.18,175.87,175.65,386.52620859]
[1641115774988,8.94,175.87,175.65,386.52620859]
[1641115775189,8.94,175.87,175.66,109.01441046]
[1641115775389,8.94,175.87,175.66,30.53411046]
[1641115776392,102.31,175.86,175.67,75.0267]
[1641115776592,8.18,175.85,175.67,75.0267]
[1641115776793,8.18,175.85,175.67,75.7867]
[1641115776991,8.94,175.85,175.67,75.7867]
[1641115777424,8.94,175.85,175.67,75.5267]
[1641115778795,111.25,175.85,175.67,75.5267]
[1641115779192,111.25,175.85,175.67,0.5]
[1641115779392,111.25,175.85,175.66,30.53411046]
[1641115780593,110.99,175.85,175.66,30.53411046]
[1641115780993,110.49,175.85,175.66,30.53411046]
[1641115781192,110.49,175.85,175.67,1.2682]
[1641115781394,110.49,175.85,175.67,6.8222]
[1641115781596,110.49,175.85,175.67,7.0822]
[1641115782398,110.99,175.85,175.67,7.0822]
[1641115782797,111.25,175.85,175.67,7.0822]
[1641115785205,111.25,175.85,175.67,2.0282]
[1641115785404,111.25,175.85,175.67,1.7682]
[1641115787006,111.25,175.85,175.67,2.0282]
[1641115788611,111.25,175.85,175.67,0.5]
[1641115788811,1.42669368,175.84,175.66,30.53411046]
[1641115789011,8.18,175.83,175.66,30.53411046]
[1641115789311,102.31,175.81,175.66,30.03411046]
[1641115789511,110.49,175.8,175.66,30.03411046]
[1641115789911,111.25,175.8,175.66,30.03411046]
[1641115790512,110.99,175.8,175.66,30.03411046]
[1641115790913,110.99,175.8,175.66,30.53411046]
[1641115791115,110.99,175.8,175.66,30.79411046]
[1641115792529,111.25,175.8,175.66,30.03411046]
[1641115792930,111.25,175.8,175.66,30.53411046]
[1641115793933,111.25,175.8,175.66,30.79411046]
[1641115794332,111.25,175.8,175.67,1.3247]
[1641115794533,111.25,175.8,175.67,1.5847]
[1641115794731,111.25,175.8,175.67,2.0847]
[1641115795334,110.99,175.8,175.67,2.0847]
[1641115796133,110.49,175.8,175.67,2.0847]
[1641115796333,110.99,175.8,175.67,2.0847]
[1641115797633,111.25,175.8,175.67,2.0847]
[1641115797935,111.25,175.8,175.67,1.8247]
[1641115798133,111.25,175.8,175.67,1.3247]
[1641115798341,111.25,175.8,175.67,1.8247]
[1641115798734,111.25,175.8,175.67,1.3247]
[1641115798937,111.25,175.8,175.67,1.8247]
[1641115799136,111.25,175.8,175.67,2.0847]
[1641115800338,111.25,175.8,175.67,1.5847]
[1641115800541,110.99,175.8,175.67,1.3247]
[1641115800744,8.18,175.83,175.67,15.9627]
[1641115800941,8.18,175.83,175.68,79.7212]
[1641115801138,8.18,175.83,175.69,8.18]
[1641115801341,8.18,175.88,175.69,8.18]
[1641115801641,8.18,175.88,175.7,2.5705]
[1641115801839,8.68,175.88,175.71,8.18]
[1641115802041,8.68,175.88,175.71,13.69]
[1641115802242,8.68,175.88,175.71,14.19]
[1641115802441,8.68,175.88,175.71,13.93]
[1641115802839,10.10669368,175.88,175.71,8.68]
[1641115803240,10.36669368,175.88,175.71,8.68]
[1641115803641,8.94,175.88,175.71,8.68]
[1641115805143,8.94,175.88,175.71,8.94]
[1641115805742,8.68,175.88,175.71,14.462]
[1641115806941,8.68,175.88,175.71,14.202]
[1641115807143,8.18,175.88,175.71,14.202]
[1641115807343,8.44,175.88,175.71,14.202]
[1641115808844,8.94,175.88,175.71,14.202]
[1641115809043,8.44,175.88,175.71,14.462]
[1641115810848,8.94,175.88,175.71,14.462]
[1641115811049,8.94,175.88,175.71,8.94]
[1641115811249,8.44,175.88,175.71,8.94]
[1641115812251,8.44,175.88,175.71,8.68]
[1641115812453,8.94,175.88,175.71,8.68]
[1641115812651,8.44,175.88,175.71,8.68]
[1641115813651,8.44,175.88,175.71,8.94]
[1641115813952,8.18,175.92,175.71,8.94]
[1641115814153,3.22143584,175.93,175.72,1.42669368]
[1641115814351,3.22143584,175.93,175.73,133.79595918]
[1641115814552,8.18,175.96,175.73,134.05595918]
[1641115814752,8.18,175.96,175.74,1.42669368]
[1641115814956,8.18,175.96,175.75,8.18]
[1641115815155,8.18,175.96,175.76,1.2568]
[1641115815354,8.18,175.96,175.77,8.18]
[1641115815554,8.18,175.96,175.78,146.4508]
[1641115815757,8.68,175.96,175.79,8.18]
[1641115815955,8.94,175.96,175.8,25.57760493]
[1641115816155,8.94,175.96,175.8,33.75760493]
[1641115816354,8.44,175.96,175.8,34.51760493]
[1641115816556,8.44,175.96,175.81,1.2568]
[1641115816959,8.44,175.96,175.81,2.0168]
[1641115818686,8.44,175.96,175.81,1.7568]
[1641115819956,8.44,175.96,175.81,2.0168]
[1641115822058,8.94,175.96,175.81,2.0168]
[1641115825760,1.50351621,175.95,175.81,2.0168]
[1641115825960,9.94351621,175.95,175.81,2.0168]
[1641115826186,10.44351621,175.95,175.81,2.0168]
[1641115827361,10.44351621,175.95,175.81,1.7568]
[1641115827961,1.50351621,175.94,175.81,1.7568]
[1641115828161,8.18,175.93,175.81,1.7568]
[1641115828361,8.68,175.93,175.81,1.7568]
[1641115828561,8.94,175.93,175.81,1.7568]
[1641115832866,8.44,175.93,175.81,1.7568]
[1641115834403,8.94,175.93,175.81,1.7568]
[1641115837807,10.44351621,175.93,175.81,1.7568]
[1641115839608,11.87020989,175.93,175.81,1.2568]
[1641115840409,1.50351621,175.9,175.81,1.2568]
[1641115840608,9.94351621,175.9,175.81,1.2568]
[1641115840808,10.44351621,175.9,175.81,1.2568]
[1641115841411,10.18351621,175.9,175.81,1.2568]
[1641115841609,9.68351621,175.9,175.81,1.2568]
[1641115842408,10.18351621,175.9,175.81,1.2568]
[1641115842809,9.68351621,175.9,175.81,1.2568]
[1641115844011,9.94351621,175.9,175.81,1.2568]
[1641115849516,10.44351621,175.9,175.81,1.2568]
[1641115851820,9.68351621,175.9,175.81,1.2568]
[1641115852219,8.18,175.9,175.81,1.2568]
[1641115853042,8.44,175.9,175.81,1.2568]
[1641115853343,8.94,175.9,175.81,1.2568]
[1641115855245,10.44351621,175.9,175.81,1.2568]
[1641115856347,9.68351621,175.9,175.81,1.7568]
[1641115856544,9.68351621,175.9,175.81,1.2568]
[1641115856746,9.68351621,175.9,175.81,1.7568]
[1641115857147,8.18,175.9,175.81,1.7568]
[1641115857745,1.50351621,175.92,175.81,1.7568]
[1641115857946,1.50351621,175.92,175.82,1.42669368]
[1641115858345,1.50351621,175.92,175.82,2.18669368]
[1641115858746,1.50351621,175.92,175.83,1.42669368]
[1641115858945,1.50351621,175.92,175.84,30.67126949]
[1641115859146,1.50351621,175.95,175.84,30.67126949]
[1641115859347,1.50351621,175.95,175.84,32.85796317]
[1641115860449,1.76351621,175.95,175.84,32.85796317]
[1641115862854,0.26,175.95,175.84,32.85796317]
[1641115863052,1.76351621,175.96,175.84,32.85796317]
[1641115863655,1.76351621,175.96,175.84,32.59796317]
[1641115863856,8.18,175.95,175.84,29.37696949]
[1641115864056,8.44,175.95,175.84,29.37696949]
[1641115864255,8.94,175.95,175.78,146.4508]
[1641115864458,10.44351621,175.95,175.8,1.2757]
[1641115865158,1.50351621,175.91,175.81,31.86653815]
[1641115865356,2.00351621,175.91,175.81,31.86653815]
[1641115865556,2.26351621,175.91,175.81,31.86653815]
[1641115866758,1.50351621,175.9,175.81,31.86653815]
[1641115866957,2.26351621,175.9,175.81,31.86653815]
[1641115867860,1.76351621,175.9,175.81,31.86653815]
[1641115868059,0.26,175.9,175.81,32.36653815]
[1641115868460,1.76351621,175.91,175.81,32.36653815]
[1641115868960,0.26,175.91,175.81,32.36653815]
[1641115869360,9.94351621,175.93,175.81,32.36653815]
[1641115869758,10.44351621,175.93,175.81,32.36653815]
[1641115869960,10.44351621,175.93,175.81,31.86653815]
[1641115871064,10.44351621,175.93,175.81,32.36653815]
[1641115871461,9.68351621,175.93,175.82,1.2219]
[1641115871864,9.68351621,175.93,175.82,1.7219]
[1641115872168,1.50351621,175.92,175.82,1.7219]
[1641115872764,1.76351621,175.92,175.82,1.7219]
[1641115873168,1.50351621,175.92,175.82,1.7219]
[1641115873362,1.50351621,175.92,175.82,1.9819]
[1641115873968,1.50351621,175.93,175.82,1.9819]
[1641115874364,1.76351621,175.93,175.82,1.9819]
[1641115875764,2.26351621,175.93,175.82,1.9819]
[1641115875966,1.50351621,175.92,175.82,1.9819]
[1641115876367,1.76351621,175.92,175.82,1.9819]
[1641115876569,1.76351621,175.92,175.82,1.2219]
[1641115876767,9.94351621,175.92,175.82,1.2219]
[1641115876965,10.44351621,175.92,175.82,1.2219]
[1641115877367,1.50351621,175.91,175.82,1.2219]
[1641115877566,1.76351621,175.91,175.82,1.2219]
[1641115877767,2.26351621,175.91,175.82,1.2219]
[1641115877968,1.76351621,175.91,175.82,1.2219]
[1641115878167,1.50351621,175.9,175.82,1.2219]
[1641115878466,1.76351621,175.9,175.82,1.2219]
[1641115878872,0.26,175.9,175.82,1.4819]
[1641115879269,1.76351621,175.91,175.82,1.4819]
[1641115879467,0.26,175.91,175.82,1.4819]
[1641115879967,9.94351621,175.92,175.82,1.4819]
[1641115880572,8.44,175.92,175.82,1.4819]
[1641115880970,8.44,175.92,175.82,1.2219]
[1641115881272,9.94351621,175.92,175.82,1.2219]
[1641115881468,10.44351621,175.92,175.82,1.2219]
[1641115882073,1.50351621,175.89,175.82,1.2219]
[1641115882478,1.76351621,175.89,175.81,31.86653815]
[1641115882878,2.26351621,175.89,175.81,31.86653815]
[1641115883380,1.76351621,175.89,175.81,31.86653815]
[1641115883579,1.50351621,175.88,175.81,31.86653815]
[1641115883980,1.76351621,175.88,175.81,31.86653815]
[1641115884379,1.76351621,175.88,175.81,33.55323183]
[1641115884578,1.76351621,175.88,175.81,32.12653815]
[1641115884780,0.26,175.88,175.81,32.12653815]
[1641115885081,1.76351621,175.9,175.81,32.12653815]
[1641115885279,1.76351621,175.9,175.79,1.3054]
[1641115885482,1.50351621,175.89,175.76,1.42669368]
[1641115885882,2.26351621,175.89,175.76,1.92669368]
[1641115886079,1.50351621,175.87,175.76,1.92669368]
[1641115886301,1.50351621,175.87,175.77,26.39544765]
[1641115886502,1.76351621,175.87,175.77,26.39544765]
[1641115886704,2.26351621,175.87,175.77,26.39544765]
[1641115887404,2.00351621,175.87,175.77,26.39544765]
[1641115887702,2.00351621,175.87,175.77,28.08214133]
[1641115887902,2.00351621,175.87,175.77,28.58214133]
[1641115888107,1.50351621,175.88,175.77,28.58214133]
[1641115888307,1.50351621,175.88,175.78,1.3343]
[1641115888505,1.50351621,175.88,175.78,1.5943]
[1641115888704,1.50351621,175.88,175.78,2.0943]
[1641115889103,1.76351621,175.88,175.78,2.0943]
[1641115889305,1.50351621,175.88,175.78,2.0943]
[1641115889504,8.18,175.9,175.78,2.0943]
[1641115889706,8.18,175.9,175.78,1.8343]
[1641115889908,8.68,175.9,175.78,1.8343]
[1641115890105,8.18,175.9,175.78,2.0943]
[1641115890508,8.44,175.9,175.78,1.8343]
[1641115890705,8.94,175.9,175.78,1.3343]
[1641115890908,8.68,175.9,175.78,1.8343]
[1641115891108,8.68,175.9,175.78,1.3343]
[1641115891706,10.18351621,175.9,175.78,1.8343]
[1641115892005,10.18351621,175.9,175.78,1.3343]
[1641115892506,10.44351621,175.9,175.78,1.8343]
[1641115893106,10.44351621,175.9,175.78,1.3343]
[1641115893906,10.44351621,175.9,175.78,1.8343]
[1641115894105,9.68351621,175.9,175.78,1.8343]
[1641115894309,9.68351621,175.9,175.78,2.0943]
[1641115894709,8.18,175.9,175.78,2.0943]
[1641115895507,8.44,175.9,175.78,2.0943]
[1641115898113,8.44,175.9,175.78,1.8343]
[1641115898313,8.94,175.9,175.78,1.8343]
[1641115899617,1.50351621,175.88,175.78,1.8343]
[1641115900016,1.76351621,175.88,175.78,1.8343]
[1641115903925,1.50351621,175.87,175.78,1.8343]
[1641115904323,1.76351621,175.87,175.78,1.8343]
[1641115905525,0.26,175.87,175.78,1.8343]
[1641115905925,1.76351621,175.88,175.78,1.8343]
[1641115908833,1.50351621,175.88,175.78,1.8343]
[1641115909229,8.18,175.9,175.78,1.8343]
[1641115909230,1.50351621,175.87,175.78,1.8343]
[1641115910633,1.76351621,175.87,175.78,1.8343]
[1641115911632,1.50351621,175.86,175.78,1.8343]
[1641115912033,1.76351621,175.86,175.78,1.8343]
[1641115912232,1.50351621,175.86,175.78,1.8343]
[1641115912457,1.50351621,175.87,175.78,1.8343]
[1641115913459,1.76351621,175.87,175.78,1.8343]
[1641115914058,1.76351621,175.87,175.78,3.26099368]
[1641115914362,1.50351621,175.87,175.78,3.26099368]
[1641115914659,1.50351621,175.88,175.78,3.52099368]
[1641115915063,1.50351621,175.88,175.79,8.18]
[1641115915259,1.50351621,175.89,175.79,8.18]
[1641115915459,1.50351621,175.89,175.8,1.42669368]
[1641115915861,1.50351621,175.89,175.8,2.18669368]
[1641115916060,1.50351621,175.92,175.8,2.18669368]
[1641115916260,1.50351621,175.92,175.81,1.42669368]
[1641115916463,1.76351621,175.92,175.81,2.18669368]
[1641115916661,1.50351621,175.92,175.81,2.18669368]
[1641115916861,1.50351621,175.92,175.83,26.35008927]
[1641115917061,1.50351621,175.92,175.83,26.61008927]
[1641115917262,1.50351621,175.92,175.83,27.11008927]
[1641115917961,1.76351621,175.92,175.83,26.85008927]
[1641115918163,1.76351621,175.92,175.83,26.35008927]
[1641115918364,1.76351621,175.92,175.83,26.85008927]
[1641115918968,1.50351621,175.9,175.83,26.35008927]
[1641115919371,1.76351621,175.9,175.83,26.85008927]
[1641115919665,1.50351621,175.89,175.83,26.85008927]
[1641115920067,0.26,175.89,175.83,26.85008927]
[1641115920468,1.76351621,175.9,175.83,26.85008927]
[1641115922970,1.76351621,175.9,175.83,27.11008927]
[1641115923471,1.76351621,175.9,175.83,26.35008927]
[1641115923869,0.26,175.9,175.83,26.35008927]
[1641115924073,1.76351621,175.91,175.83,26.85008927]
[1641115924871,1.76351621,175.91,175.83,27.11008927]
[1641115925072,1.50351621,175.9,175.83,27.11008927]
[1641115925474,1.76351621,175.9,175.83,27.11008927]
[1641115926173,1.76351621,175.9,175.83,26.61008927]
[1641115926578,1.76351621,175.9,175.83,27.11008927]
[1641115926975,1.76351621,175.9,175.83,26.61008927]
[1641115927376,1.76351621,175.9,175.83,27.11008927]
[1641115927776,1.76351621,175.9,175.83,26.61008927]
[1641115928176,1.76351621,175.9,175.83,27.11008927]
[1641115928379,1.76351621,175.9,175.83,0.5]
[1641115928578,1.76351621,175.9,175.8,1.2628]
[1641115928776,1.76351621,175.9,175.8,1.7628]
[1641115929382,1.50351621,175.89,175.8,1.7628]
[1641115929582,1.76351621,175.89,175.8,1.7628]
[1641115930181,1.50351621,175.88,175.8,1.7628]
[1641115930583,1.76351621,175.88,175.8,1.7628]
[1641115931484,1.76351621,175.88,175.8,2.0228]
[1641115932084,0.26,175.88,175.8,2.0228]
[1641115932485,1.76351621,175.89,175.8,2.0228]
[1641115933884,1.50351621,175.88,175.8,2.0228]
[1641115934083,1.76351621,175.88,175.8,2.0228]
[1641115934285,1.50351621,175.88,175.8,2.0228]
[1641115935486,1.50351621,175.89,175.8,2.0228]
[1641115937084,1.76351621,175.89,175.8,2.0228]
[1641115938088,0.26,175.89,175.8,2.0228]
[1641115938388,1.50351621,175.9,175.8,2.0228]
[1641115938589,1.50351621,175.91,175.8,2.0228]
[1641115939910,1.76351621,175.91,175.8,2.0228]
[1641115940309,1.76351621,175.91,175.8,1.7628]
[1641115941112,1.50351621,175.89,175.8,1.7628]
[1641115941511,1.76351621,175.89,175.8,1.7628]
[1641115941912,1.76351621,175.89,175.8,2.0228]
[1641115943012,0.26,175.89,175.8,2.0228]
[1641115943411,1.76351621,175.9,175.8,2.0228]
[1641115945513,0.26,175.9,175.8,2.0228]
[1641115946115,1.76351621,175.91,175.8,2.0228]
[1641115948019,1.76351621,175.91,175.81,8.18]
[1641115948519,1.76351621,175.91,175.81,8.94]
[1641115949019,1.76351621,175.91,175.82,1.2128]
[1641115949421,1.76351621,175.91,175.82,1.9728]
[1641115950719,0.26,175.91,175.82,1.9728]
[1641115951221,1.50351621,175.92,175.82,1.9728]
[1641115951222,1.76351621,175.92,175.82,1.9728]
[1641115951627,0.26,175.92,175.82,1.9728]
[1641115952020,1.76351621,175.93,175.82,1.9728]
[1641115953421,1.76351621,175.93,175.82,81.8012]
[1641115957125,0.26,175.93,175.82,81.8012]
[1641115957527,10.44351621,175.96,175.82,81.8012]
[1641115957726,1.50351621,175.95,175.82,81.8012]
[1641115958127,1.76351621,175.95,175.82,81.8012]
[1641115958732,0.26,175.95,175.82,81.8012]
[1641115959128,9.94351621,175.96,175.82,81.8012]
[1641115959332,9.94351621,175.96,175.83,1.42669368]
[1641115959527,9.94351621,175.96,175.83,1.68669368]
[1641115959828,9.94351621,175.96,175.83,2.18669368]
[1641115960233,9.94351621,175.96,175.84,1.42669368]
[1641115960430,9.94351621,175.96,175.84,1.92669368]
[1641115960629,9.94351621,175.96,175.85,1.3436]
[1641115960831,10.44351621,175.96,175.85,3.27029368]
[1641115961030,10.44351621,175.96,175.85,1.3436]
[1641115961832,10.44351621,175.96,175.86,27.00059323]
[1641115962232,9.94351621,175.96,175.86,27.00059323]
[1641115962834,8.44,175.96,175.86,27.00059323]
[1641115963241,8.94,175.96,175.86,27.00059323]
[1641115966038,8.44,175.96,175.86,27.00059323]
[1641115967943,1.50351621,175.94,175.86,27.00059323]
[1641115968443,1.76351621,175.94,175.86,27.00059323]
[1641115970249,1.76351621,175.94,175.85,1.3436]
[1641115970447,1.76351621,175.94,175.85,1.8436]
[1641115970848,1.76351621,175.94,175.85,1.3436]
[1641115971047,1.50351621,175.93,175.85,1.3436]
[1641115971449,1.76351621,175.93,175.85,1.3436]
[1641115971648,1.50351621,175.92,175.85,1.3436]
[1641115972049,1.76351621,175.92,175.85,1.3436]
[1641115972875,0.26,175.92,175.85,1.8436]
[1641115973072,1.76351621,175.93,175.85,1.8436]
[1641115973271,1.76351621,175.93,175.85,1.3436]
[1641115974774,1.76351621,175.93,175.85,1.8436]
[1641115976175,0.26,175.93,175.85,1.8436]
[1641115976581,1.76351621,175.94,175.85,1.8436]
[1641115977478,1.50351621,175.93,175.85,1.8436]
[1641115977876,1.76351621,175.93,175.85,1.8436]
[1641115978281,0.26,175.93,175.85,1.8436]
[1641115978477,1.76351621,175.94,175.85,1.8436]
[1641115978679,2.26351621,175.94,175.85,1.3436]
[1641115979478,1.50351621,175.93,175.85,1.3436]
[1641115979877,1.76351621,175.93,175.85,1.3436]
[1641115981479,1.50351621,175.92,175.85,1.3436]
[1641115981878,1.76351621,175.92,175.85,1.3436]
[1641115982680,0.26,175.92,175.85,1.3436]
[1641115983080,1.76351621,175.93,175.85,1.3436]
[1641115983983,1.50351621,175.92,175.85,1.3436]
[1641115984581,1.76351621,175.92,175.85,1.3436]